bitfinex/quotes_SOLUSD_20260102
["timestamp","ask_amount","ask_price","bid_price","bid_amount"]
[1767368387587,6.51436318,128.98,128.93,0.6724806]
[1767368387986,0.70833665,128.98,128.93,0.6724806]
[1767368388198,6.51436318,128.98,128.94,14.16]
[1767368388394,0.70833665,128.98,128.94,14.16]
[1767368388606,6.51436318,128.98,128.94,14.16]
[1767368388985,0.70833665,128.98,128.94,14.16]
[1767368389210,5.80602653,128.97,128.94,14.16]
[1767368389423,0.1,128.99,128.95,0.6724806]
[1767368389905,5.90602653,128.99,128.95,0.6724806]
[1767368390081,5.90602653,128.99,128.95,22.58727974]
[1767368390510,3.47910967,128.99,128.95,14.8324806]
[1767368391100,0.1,128.99,128.95,22.58698173]
[1767368391311,3.47910967,128.99,128.95,22.58698173]
[1767368391685,0.1,128.99,128.95,14.8324806]
[1767368391885,3.47910967,128.99,128.95,21.91482631]
[1767368392086,3.47910967,128.99,128.95,22.58730691]
[1767368392317,3.37910967,128.98,128.95,14.16]
[1767368392521,0.1,128.99,128.96,0.6724806]
[1767368392820,0.70833665,129.03,128.98,0.6724806]
[1767368392990,3.37910967,129.02,128.99,0.6724806]
[1767368393181,0.70833665,129.03,128.99,0.6724806]
[1767368393397,3.37910967,129.02,128.99,0.6724806]
[1767368395104,0.70833665,129.03,128.99,0.6724806]
[1767368395105,3.37910967,129.01,128.99,0.6724806]
[1767368395310,3.37910967,129.01,128.98,14.8324806]
[1767368395692,3.37910967,129.01,128.98,22.58559173]
[1767368395894,3.37910967,129.02,128.98,22.58559173]
[1767368396216,0.1,129.04,129.0,0.68271151]
[1767368396390,3.37910967,129.06,129.02,0.68271151]
[1767368397207,182.83910967,129.12,129.02,0.68271151]
[1767368397208,7.74566279,129.11,129.03,0.68271151]
[1767368397394,0.69343178,129.12,129.05,0.68271151]
[1767368397594,0.1,129.15,129.1,0.68271151]
[1767368397809,4.73790796,129.19,129.12,0.68271151]
[1767368398009,0.69343178,129.19,129.14,0.68271151]
[1767368398515,0.69343178,129.19,129.14,10.06551181]
[1767368398812,7.73950016,129.21,129.16,0.68271151]
[1767368398813,9.3828003,129.21,129.16,0.68271151]
[1767368398994,0.69343178,129.23,129.17,14.16]
[1767368399184,0.69343178,129.23,129.18,14.84271151]
[1767368399383,9.3828003,129.21,129.18,0.68271151]
[1767368399589,0.69343178,129.2,129.18,14.16]
[1767368399792,0.69343178,129.24,129.18,14.16]
[1767368399992,9.3828003,129.21,129.18,14.16]
[1767368400203,9.3828003,129.19,129.15,0.68271151]
[1767368400401,9.3828003,129.18,129.16,14.14]
[1767368400715,9.3828003,129.17,129.16,14.14]
[1767368401011,9.3828003,129.17,129.14,14.14]
[1767368401189,8.35013837,129.2,129.12,14.14]
[1767368401385,9.3828003,129.13,129.12,14.14]
[1767368401591,8.35013837,129.2,129.12,14.14]
[1767368401811,9.3828003,129.13,129.12,14.14]
[1767368402202,65.77491384,129.23,129.13,0.68271151]
[1767368402390,79.91491384,129.23,129.13,0.68271151]
[1767368402803,9.3828003,129.17,129.13,0.68271151]
[1767368403002,23.23891065,129.3,129.16,0.68271151]
[1767368403197,9.3828003,129.22,129.18,0.68271151]
[1767368403393,27.07092581,129.29,129.18,14.14]
[1767368403593,46.69044208,129.35,129.25,9.3828003]
[1767368403815,46.69044208,129.35,129.28,0.68271151]
[1767368403816,4.03890352,129.32,129.28,0.68271151]
[1767368404017,4.03890352,129.32,129.29,4.03846218]
[1767368404203,38.95927541,129.35,129.3,0.68271151]
[1767368404403,7.72797527,129.4,129.31,0.68271151]
[1767368404608,11.76396141,129.43,129.34,0.68271151]
[1767368404825,11.76396141,129.43,129.35,14.14]
[1767368405006,7.72565272,129.44,129.37,0.68271151]
[1767368405317,7.72565272,129.44,129.37,14.82271151]
[1767368405518,7.72320049,129.48,129.38,0.68271151]
[1767368405694,27.03120172,129.48,129.39,0.68271151]
[1767368405893,27.03120172,129.48,129.37,14.14]
[1767368406125,0.03915,129.45,129.37,14.14]
[1767368406305,0.03915,129.45,129.34,16.08121844]
[1767368406510,9.3828003,129.4,129.34,9.3828003]
[1767368406697,0.03915,129.44,129.35,14.14]
[1767368406898,9.3828003,129.38,129.32,8.35013837]
[1767368407106,0.03915,129.39,129.33,14.14]
[1767368407302,9.3828003,129.34,129.3,14.14]
[1767368407617,9.3828003,129.33,129.26,30.0]
[1767368407802,9.3828003,129.31,129.29,4.03846218]
[1767368408000,0.03915,129.35,129.29,4.72117369]
[1767368408001,9.3828003,129.32,129.29,4.72117369]
[1767368408196,8.35013837,129.41,129.3,0.68271151]
[1767368408197,0.03915,129.37,129.3,0.68271151]
[1767368408413,9.3828003,129.33,129.3,0.68271151]
[1767368408601,0.03915,129.37,129.3,0.68271151]
[1767368408800,0.03915,129.4,129.29,4.72117369]
[1767368409014,9.3828003,129.32,129.29,4.72117369]
[1767368409198,0.03915,129.37,129.29,4.72117369]
[1767368409405,0.03915,129.36,129.29,4.72117369]
[1767368409595,9.3828003,129.3,129.25,0.68271151]
[1767368409800,9.3828003,129.31,129.26,10.06551181]
[1767368410022,22.47013837,129.38,129.25,14.14]
[1767368410023,9.3828003,129.3,129.27,0.68271151]
[1767368410212,9.3828003,129.33,129.27,0.68271151]
[1767368410400,0.03915,129.34,129.27,0.68271151]
[1767368410602,27.04791344,129.4,129.28,9.3828003]
[1767368410921,9.3828003,129.35,129.31,0.68271151]
[1767368411114,9.3828003,129.33,129.31,0.68271151]
[1767368411316,7.72976733,129.37,129.31,0.68271151]
[1767368411521,9.3828003,129.35,129.31,0.68271151]
[1767368411726,19.35944723,129.4,129.31,0.68271151]
[1767368411727,9.3828003,129.34,129.31,0.68271151]
[1767368412202,7.72931749,129.38,129.31,0.68271151]
[1767368412203,9.3828003,129.33,129.31,0.68271151]
[1767368412404,9.3828003,129.32,129.28,14.80271151]
[1767368412618,0.03915,129.34,129.28,14.80271151]
[1767368412619,9.3828003,129.33,129.29,0.68271151]
[1767368413127,7.76772253,129.39,129.3,0.68271151]
[1767368413319,0.03915,129.41,129.3,15.0]
[1767368413518,9.3828003,129.36,129.33,0.68271151]
[1767368413818,9.3828003,129.35,129.33,0.68271151]
[1767368414004,0.03915,129.4,129.36,0.49823607]
[1767368414205,0.03915,129.4,129.33,0.68271151]
[1767368414405,9.3828003,129.35,129.33,0.68271151]
[1767368414625,9.3828003,129.36,129.33,0.68271151]
[1767368414828,0.03915,129.4,129.33,0.68271151]
[1767368415011,9.3828003,129.34,129.29,14.80271151]
[1767368415216,17.73293867,129.42,129.29,14.80271151]
[1767368415217,9.3828003,129.31,129.29,0.68271151]
[1767368415410,7.73143584,129.35,129.26,14.12]
[1767368415411,9.3828003,129.3,129.26,14.12]
[1767368415724,7.73143584,129.35,129.27,0.68271151]
[1767368415926,9.3828003,129.32,129.28,0.68271151]
[1767368416132,9.3828003,129.29,129.24,0.68271151]
[1767368416320,9.3828003,129.26,129.24,0.68271151]
[1767368416630,8.424479,129.35,129.27,0.68271151]
[1767368416830,9.3828003,129.31,129.27,0.68271151]
[1767368417126,9.3828003,129.31,129.24,0.68271151]
[1767368417127,9.3828003,129.28,129.24,0.68271151]
[1767368417331,9.3828003,129.26,129.24,0.68271151]
[1767368417709,38.61898509,129.47,129.26,0.68271151]
[1767368417912,0.69343178,129.38,129.29,0.68271151]
[1767368418122,9.3828003,129.32,129.29,0.68271151]
[1767368418315,0.69343178,129.35,129.29,0.68271151]
[1767368418522,9.3828003,129.31,129.29,0.68271151]
[1767368419135,0.69343178,129.35,129.27,14.80271151]
[1767368419136,9.3828003,129.3,129.27,14.80271151]
[1767368419555,9.3828003,129.29,129.27,14.80271151]
[1767368419741,9.3828003,129.29,129.27,0.68271151]
[1767368419911,0.69343178,129.38,129.27,0.68271151]
[1767368420234,41.17209459,129.38,129.27,0.68271151]
[1767368420417,41.17209459,129.38,129.3,0.68271151]
[1767368420418,9.3828003,129.34,129.3,0.68271151]
[1767368420612,7.72916988,129.38,129.31,0.68271151]
[1767368420812,9.3828003,129.35,129.31,0.68271151]
[1767368421013,9.3828003,129.34,129.31,14.80271151]
[1767368421212,0.69343178,129.4,129.32,0.68271151]
[1767368421409,9.3828003,129.37,129.33,0.68271151]
[1767368421625,0.69343178,129.4,129.33,0.68271151]
[1767368421626,9.3828003,129.36,129.33,0.68271151]
[1767368421816,0.69343178,129.39,129.33,0.68271151]
[1767368422141,9.3828003,129.34,129.32,0.68271151]
[1767368422316,9.3828003,129.33,129.28,0.68271151]
[1767368422518,9.3828003,129.29,129.26,0.68271151]
[1767368422923,9.3828003,129.31,129.26,8.41899546]
[1767368423125,9.3828003,129.3,129.26,8.41899546]
[1767368423436,7.72976733,129.37,129.27,0.68271151]
[1767368423635,9.3828003,129.32,129.28,0.68271151]
[1767368423837,9.3828003,129.31,129.28,0.68271151]
[1767368424048,9.3828003,129.33,129.29,0.68271151]
[1767368424220,9.3828003,129.3,129.26,0.68271151]
[1767368424421,9.3828003,129.29,129.26,14.80271151]
[1767368424618,0.69343178,129.35,129.27,0.68271151]
[1767368424818,9.3828003,129.3,129.27,0.68271151]
[1767368425019,9.3828003,129.29,129.26,14.12]
[1767368425225,9.3828003,129.28,129.26,14.12]
[1767368425442,0.69343178,129.31,129.26,14.12]
[1767368425739,9.3828003,129.31,129.27,0.68271151]
[1767368425919,9.3828003,129.32,129.28,0.68271151]
[1767368426119,9.3828003,129.31,129.28,0.68271151]
[1767368426646,0.69343178,129.35,129.28,0.68271151]
[1767368426834,9.3828003,129.3,129.27,14.12]
[1767368427223,9.3828003,129.31,129.27,14.83825486]
[1767368427937,9.3828003,129.32,129.28,0.71825486]
[1767368428118,8.45081522,129.35,129.28,0.71825486]
[1767368428319,9.3828003,129.31,129.28,0.71825486]
[1767368428543,9.3828003,129.31,129.28,14.83825486]
[1767368428745,9.3828003,129.29,129.24,0.71825486]
[1767368428920,9.3828003,129.28,129.25,14.12]
[1767368429233,9.3828003,129.28,129.24,8.45543168]
[1767368429234,9.3828003,129.28,129.24,14.83825486]
[1767368429433,0.71964325,129.3,129.24,14.12]
[1767368429634,0.71964325,129.3,129.24,14.83825486]
[1767368429937,9.3828003,129.26,129.24,14.83825486]
[1767368430144,9.3828003,129.28,129.25,0.71825486]
[1767368430443,9.3828003,129.29,129.26,0.71825486]
[1767368430742,9.3828003,129.27,129.22,9.3828003]
[1767368430942,0.71964325,129.3,129.23,14.83825486]
[1767368431123,8.45406193,129.3,129.23,14.83825486]
[1767368431322,9.3828003,129.26,129.23,14.83825486]
[1767368431521,0.71964325,129.29,129.21,8.45720625]
[1767368431739,9.3828003,129.25,129.21,21.85895139]
[1767368431925,0.71964325,129.29,129.22,0.71825486]
[1767368432129,7.73356034,129.31,129.24,0.71825486]
[1767368432326,9.3828003,129.27,129.24,0.71825486]
[1767368432526,9.3828003,129.26,129.24,0.71825486]
[1767368432733,0.71964325,129.3,129.24,0.71825486]
[1767368432939,9.3828003,129.26,129.24,0.71825486]
[1767368433143,9.3828003,129.25,129.22,14.12]
[1767368433423,9.3828003,129.25,129.22,22.57677423]
[1767368433623,9.3828003,129.25,129.22,14.83825486]
[1767368434045,9.3828003,129.24,129.22,14.83825486]
[1767368434574,9.3828003,129.23,129.22,14.12]
[1767368435147,9.3828003,129.23,129.2,8.45817498]
[1767368435324,0.71964325,129.26,129.2,8.45817498]
[1767368435325,0.71964325,129.26,129.2,22.57817498]
[1767368435525,0.71964325,129.26,129.2,8.45817498]
[1767368435730,9.3828003,129.23,129.2,22.57817498]
[1767368436039,9.3828003,129.22,129.2,14.83825486]
[1767368436240,8.45609741,129.26,129.17,14.83825486]
[1767368436241,9.3828003,129.21,129.17,14.83825486]
[1767368436447,9.3828003,129.19,129.17,14.12]
[1767368436748,0.71964325,129.22,129.17,14.12]
[1767368436749,9.3828003,129.18,129.17,14.12]
[1767368436953,9.3828003,129.18,129.15,8.46096591]
[1767368437255,9.3828003,129.18,129.16,14.12]
[1767368437634,0.71964325,129.23,129.16,21.86223329]
[1767368437840,9.3828003,129.2,129.17,0.71825486]
[1767368438141,0.71964325,129.24,129.18,0.71825486]
[1767368438445,9.3828003,129.19,129.15,7.74292552]
[1767368438745,9.3828003,129.18,129.15,8.46118038]
[1767368438951,0.71964325,129.2,129.15,8.46118038]
[1767368439429,7.73835362,129.23,129.16,0.71825486]
[1767368439430,0.71964325,129.23,129.16,0.71825486]
[1767368439623,9.3828003,129.2,129.16,0.71825486]
[1767368439822,9.3828003,129.17,129.14,22.78162651]
[1767368440139,17.12036711,129.24,129.14,22.78162651]
[1767368440140,9.3828003,129.16,129.14,0.2]
[1767368440339,9.3828003,129.15,129.14,0.2]
[1767368440535,0.71964325,129.19,129.14,0.2]
[1767368440536,9.3828003,129.16,129.14,0.2]
[1767368440734,9.3828003,129.15,129.14,0.2]
[1767368441355,9.3828003,129.17,129.15,7.7477146]
[1767368441647,0.71964325,129.22,129.15,7.7477146]
[1767368441847,0.71964325,129.25,129.17,0.71825486]
[1767368442023,9.3828003,129.21,129.17,0.71825486]
[1767368442228,9.3828003,129.24,129.2,0.71825486]
[1767368442428,9.3828003,129.23,129.2,14.83825486]
[1767368443148,9.3828003,129.21,129.17,14.12]
[1767368443335,9.3828003,129.2,129.17,14.83825486]
[1767368443531,9.3828003,129.2,129.17,0.71825486]
[1767368444045,9.3828003,129.19,129.16,14.83825486]
[1767368444227,9.3828003,129.2,129.16,22.58037656]
[1767368444429,9.3828003,129.2,129.16,14.83825486]
[1767368444646,9.3828003,129.2,129.16,22.58018421]
[1767368444947,0.71964325,129.22,129.16,22.58018421]
[1767368444948,9.3828003,129.21,129.17,8.459901]
[1767368445255,9.3828003,129.21,129.17,22.579901]
[1767368445433,10.10244355,129.22,129.17,31.9627013]
[1767368445635,9.3828003,129.21,129.17,22.579901]
[1767368445941,9.3828003,129.2,129.17,14.83825486]
[1767368446149,9.3828003,129.21,129.17,22.57993712]
[1767368446331,0.71964325,129.24,129.17,22.57993712]
[1767368446529,9.3828003,129.2,129.17,14.83825486]
[1767368447451,0.71964325,129.23,129.17,22.57990153]
[1767368447751,9.3828003,129.21,129.17,22.57990153]
[1767368447935,20.53632593,129.28,129.17,31.24444697]
[1767368448254,9.3828003,129.22,129.17,21.86164667]
[1767368448445,9.3828003,129.22,129.17,22.57990153]
[1767368448650,9.3828003,129.22,129.18,0.71825486]
[1767368449141,9.3828003,129.23,129.19,0.71825486]
[1767368449629,9.3828003,129.24,129.2,0.71825486]
[1767368449825,9.3828003,129.23,129.19,0.71825486]
[1767368450029,9.3828003,129.24,129.19,0.71825486]
[1767368450258,0.71964325,129.25,129.19,0.71825486]
[1767368450552,5.77021773,129.24,129.19,0.71825486]
[1767368450727,5.77021773,129.22,129.19,0.71825486]
[1767368450931,5.77021773,129.23,129.19,0.71825486]
[1767368451139,0.71964325,129.24,129.19,0.71825486]
[1767368451339,0.71964325,129.24,129.18,13.51132549]
[1767368451548,5.77021773,129.2,129.17,14.12]
[1767368451763,5.77021773,129.21,129.17,14.83825486]
[1767368452070,5.77021773,129.18,129.17,14.12]
[1767368452441,0.71964325,129.19,129.14,0.2]
[1767368452771,5.77021773,129.16,129.14,0.2]
[1767368453133,8.46098602,129.18,129.14,0.2]
[1767368453341,0.71964325,129.18,129.14,0.2]
[1767368453962,5.77021773,129.16,129.14,0.2]
[1767368455243,0.71964325,129.17,129.09,0.91825486]
[1767368455244,6.29521773,129.15,129.09,0.91825486]
[1767368455447,5.77021773,129.11,129.09,0.2]
[1767368455653,0.525,129.13,129.09,0.2]
[1767368455850,5.77021773,129.11,129.09,0.2]
[1767368456050,5.77021773,129.12,129.09,0.2]
[1767368456251,5.77021773,129.13,129.09,0.2]
[1767368456451,5.77021773,129.1,129.09,0.2]
[1767368456872,5.77021773,129.12,129.09,0.2]
[1767368457099,5.77021773,129.11,129.09,0.2]
[1767368457276,5.77021773,129.12,129.09,0.2]
[1767368457569,5.77021773,129.1,129.05,0.70707089]
[1767368457746,5.77021773,129.09,129.06,0.70707089]
[1767368457946,5.77021773,129.1,129.06,0.70707089]
[1767368458366,5.77021773,129.09,129.06,0.70707089]
[1767368458670,5.77021773,129.07,129.04,0.70707089]
[1767368458968,5.77021773,129.05,129.04,14.12]
[1767368459154,5.77021773,129.05,129.02,34.85904118]
[1767368459353,5.77021773,129.05,129.01,14.12]
[1767368459354,5.77021773,129.03,129.01,14.12]
[1767368459557,5.77021773,129.03,128.99,14.82707089]
[1767368459753,5.77021773,129.04,129.0,7.75192724]
[1767368460059,5.77021773,129.03,129.0,8.45899813]
[1767368460258,5.77021773,129.04,129.0,0.70707089]
[1767368460460,5.77021773,129.04,129.0,8.45878545]
[1767368460974,5.77021773,129.04,129.0,0.70707089]
[1767368461173,0.325,129.09,129.0,8.45892259]
[1767368461374,5.77021773,129.06,129.01,0.70707089]
[1767368461578,0.325,129.08,129.01,0.70707089]
[1767368461789,5.77021773,129.02,128.97,0.70707089]
[1767368461953,5.77021773,128.99,128.95,8.46154773]
[1767368462154,0.325,129.05,128.96,0.70707089]
[1767368462477,5.77021773,129.04,128.98,0.70707089]
[1767368462657,5.77021773,129.04,128.99,0.70707089]
[1767368463060,5.77021773,129.04,129.0,0.70707089]
[1767368463279,5.77021773,129.03,129.0,0.70707089]
[1767368463450,5.77021773,129.03,128.96,96.68508637]
[1767368463451,5.77021773,129.01,128.96,14.14]
[1767368463773,5.77021773,129.02,128.97,0.70707089]
[1767368463952,0.325,129.05,128.97,5.77021773]
[1767368464154,7.7472934,129.08,128.99,0.70707089]
[1767368464366,5.77021773,129.05,129.0,0.70707089]
[1767368464568,7.7472934,129.08,129.0,0.70707089]
[1767368464569,5.77021773,129.04,129.0,0.70707089]
[1767368464855,0.325,129.06,129.0,0.70707089]
[1767368465059,5.77021773,129.04,129.0,0.70707089]
[1767368465464,5.77021773,129.03,128.99,14.14]
[1767368465884,5.77021773,129.03,128.99,21.89230947]
[1767368466081,5.77021773,129.03,128.99,22.59938036]
[1767368466380,5.77021773,129.02,128.99,14.14]
[1767368466580,0.325,129.06,128.99,14.14]
[1767368466879,5.77021773,129.05,129.0,0.70707089]
[1767368467182,5.77021773,129.05,129.0,8.45887757]
[1767368467366,0.325,129.07,129.01,0.70707089]
[1767368467568,0.325,129.08,129.0,0.70707089]
[1767368467884,5.77021773,129.06,129.0,0.70707089]
[1767368468074,5.77021773,129.08,129.02,0.70707089]
[1767368468267,5.77021773,129.04,128.99,7.7523196]
[1767368468470,5.77021773,129.03,129.0,0.70707089]
[1767368468789,5.77021773,129.01,128.97,14.84707089]
[1767368469086,5.77021773,128.99,128.95,0.70707089]
[1767368469260,5.77021773,128.98,128.95,0.70707089]
[1767368469472,8.07688327,129.01,128.95,0.70707089]
[1767368469680,5.77021773,129.0,128.96,0.70707089]
[1767368469862,5.77021773,129.01,128.96,0.70707089]
[1767368470381,5.77021773,128.99,128.96,0.70707089]
[1767368470681,5.77021773,128.99,128.95,8.46199453]
[1767368470882,5.77021773,128.99,128.95,0.70707089]
[1767368471064,5.77021773,128.98,128.95,0.70707089]
[1767368471261,5.77021773,128.97,128.92,8.46356195]
[1767368471684,5.77021773,129.0,128.94,0.70707089]
[1767368471883,5.77021773,128.99,128.94,0.70707089]
[1767368472062,0.325,129.02,128.95,0.70707089]
[1767368472262,5.77021773,129.0,128.95,0.70707089]
[1767368472464,5.77021773,129.01,128.95,0.70707089]
[1767368472665,5.77021773,128.99,128.95,0.70707089]
[1767368472869,5.77021773,128.97,128.94,14.14]
[1767368473067,5.77021773,128.97,128.91,23.35013837]
[1767368473068,5.77021773,128.96,128.91,16.81437124]
[1767368473268,5.77021773,128.95,128.91,14.84707089]
[1767368473484,5.77021773,128.93,128.91,14.14]
[1767368473658,0.325,128.96,128.91,21.8973221]
[1767368473659,5.77021773,128.96,128.91,21.8973221]
[1767368473863,5.77021773,128.96,128.92,0.70707089]
[1767368474168,0.325,128.98,128.92,0.70707089]
[1767368474488,5.77021773,128.97,128.92,0.70707089]
[1767368474786,5.77021773,128.96,128.92,0.70707089]
[1767368475378,5.77021773,128.95,128.91,14.14]
[1767368475565,5.77021773,128.95,128.91,14.84707089]
[1767368475764,5.77021773,128.94,128.91,14.14]
[1767368476170,0.325,128.96,128.91,14.14]
[1767368476171,5.77021773,128.93,128.91,14.14]
[1767368476373,0.325,128.96,128.9,0.70707089]
[1767368476581,5.77021773,128.94,128.9,0.70707089]
[1767368476776,8.07825877,128.98,128.9,0.70707089]
[1767368476777,5.77021773,128.93,128.9,0.70707089]
[1767368477092,5.77021773,128.94,128.9,0.70707089]
[1767368477482,5.77021773,128.93,128.9,8.46489076]
[1767368478182,5.77021773,128.94,128.9,8.46489076]
[1767368478374,5.77021773,128.93,128.9,8.46489076]
[1767368478576,5.77021773,128.94,128.9,8.46489076]
[1767368478773,0.325,129.0,128.91,0.70707089]
[1767368478978,0.325,129.0,128.92,14.14]
[1767368479172,5.77021773,128.96,128.93,0.70707089]
[1767368479378,5.77021773,128.94,128.92,14.14]
[1767368479573,5.77021773,128.94,128.91,0.70707089]
[1767368479774,5.77021773,128.95,128.91,0.70707089]
[1767368480995,5.77021773,128.95,128.91,8.46421413]
[1767368481577,5.77021773,128.95,128.91,0.70707089]
[1767368481783,5.77021773,128.93,128.9,14.14]
[1767368482483,5.77021773,128.93,128.87,0.2]
[1767368482484,5.77021773,128.91,128.87,0.2]
[1767368482695,5.77021773,128.9,128.87,0.90707089]
[1767368483009,0.225,128.93,128.87,8.66677189]
[1767368483010,5.77021773,128.92,128.87,8.66677189]
[1767368483500,5.77021773,128.91,128.87,8.66677189]
[1767368483874,5.77021773,128.95,128.89,0.70707089]
[1767368484075,5.77021773,128.95,128.9,0.70707089]
[1767368484291,5.77021773,128.94,128.9,0.70707089]
[1767368484494,5.77021773,128.93,128.9,0.70707089]
[1767368485681,7.97941458,128.96,128.9,0.70707089]
[1767368485993,0.225,128.96,128.91,0.69931976]
[1767368486183,5.77021773,128.95,128.91,0.69931976]
[1767368486381,0.225,128.96,128.91,0.69931976]
[1767368486583,5.77021773,128.95,128.91,0.69931976]
[1767368487084,5.77021773,128.94,128.91,0.69931976]
[1767368488005,5.77021773,128.95,128.91,8.45635976]
[1767368488184,5.77021773,128.95,128.91,0.69931976]
[1767368489204,5.77021773,128.95,128.91,7.75709136]
[1767368489406,5.77021773,128.96,128.92,0.70202157]
[1767368489780,5.77021773,128.95,128.92,0.70202157]
[1767368491201,5.77021773,128.97,128.93,0.70202157]
[1767368491503,5.77021773,128.98,128.93,0.70202157]
[1767368491704,0.225,129.0,128.94,0.70202157]
[1767368491904,5.77021773,128.98,128.94,0.70202157]
[1767368493301,5.77021773,128.96,128.93,14.16]
[1767368493613,0.225,128.98,128.93,14.16]
[1767368493818,5.77021773,128.98,128.93,14.86202157]
[1767368494188,5.77021773,128.98,128.94,0.70202157]
[1767368494891,5.77021773,128.99,128.94,0.70202157]
[1767368495808,0.225,129.0,128.94,0.70202157]
[1767368495986,0.225,129.0,128.92,33.5512287]
[1767368495987,5.77021773,128.99,128.95,0.70202157]
[1767368496715,0.225,129.0,128.95,0.70202157]
[1767368497107,5.77021773,129.01,128.95,5.77021773]
[1767368497417,5.77021773,129.01,128.96,0.70202157]
[1767368497418,13.52156818,129.01,128.96,0.70202157]
[1767368497603,13.74656818,129.01,128.96,0.70202157]
[1767368497799,5.77021773,129.01,128.96,0.70202157]
[1767368498192,7.97580115,129.02,128.96,0.70202157]
[1767368498388,5.77021773,129.01,128.96,0.70202157]
[1767368498694,5.77021773,129.04,128.98,0.70202157]
[1767368498887,13.51979012,129.04,128.98,0.70202157]
[1767368499195,5.77021773,129.03,128.98,0.70202157]
[1767368499406,7.74957239,129.04,128.98,0.70202157]
[1767368499606,5.77021773,129.03,128.98,0.70202157]
[1767368499803,7.75016063,129.03,128.98,0.70202157]
[1767368500001,5.77021773,129.01,128.97,14.86202157]
[1767368500207,5.77021773,129.02,128.97,14.86202157]
[1767368500612,5.77021773,129.02,128.97,22.61574019]
[1767368500821,5.77021773,129.02,128.98,0.70202157]
[1767368501408,5.77021773,129.04,128.98,0.70202157]
[1767368502017,5.77021773,129.03,128.99,0.70202157]
[1767368502317,5.77021773,129.01,128.97,0.70202157]
[1767368503209,0.225,129.02,128.97,0.70202157]
[1767368503410,5.77021773,129.01,128.97,0.70202157]
[1767368503607,5.77021773,129.02,128.97,0.70202157]
[1767368504018,5.77021773,129.03,128.98,0.70202157]
[1767368504501,5.77021773,129.04,128.99,0.70202157]
[1767368504694,19.91021773,129.05,128.99,0.70202157]
[1767368504915,5.1925235,129.04,128.99,0.70202157]
[1767368505116,19.91021773,129.05,129.0,0.70202157]
[1767368505501,5.77021773,129.05,129.0,0.70202157]
[1767368506123,13.51922089,129.05,129.0,0.70202157]
[1767368508432,5.77021773,129.06,129.01,0.70202157]
[1767368508600,5.77021773,129.04,128.99,0.70202157]
[1767368508801,0.225,129.06,128.99,0.70202157]
[1767368509026,5.77021773,129.04,128.99,0.70202157]
[1767368510304,13.74385385,129.06,129.0,0.70202157]
[1767368510601,5.77021773,129.06,129.0,0.70202157]
[1767368510824,5.77021773,129.05,129.0,0.70202157]
[1767368511006,7.748075,129.07,129.0,5.77021773]
[1767368511007,13.51829273,129.07,129.0,5.77021773]
[1767368511207,13.51829273,129.07,129.01,0.70202157]
[1767368511517,27.34240946,129.07,129.01,0.70202157]
[1767368511922,5.77021773,129.06,129.01,0.70202157]
[1767368512308,5.77021773,129.05,129.01,0.70202157]
[1767368512531,9.40457058,129.05,129.01,0.70202157]
[1767368512824,7.973075,129.07,129.01,0.70202157]
[1767368513029,7.74629321,129.1,129.01,0.70202157]
[1767368513210,9.40457058,129.05,129.01,0.70202157]
[1767368513602,9.40457058,129.04,129.01,0.70202157]
[1767368513809,0.225,129.06,129.01,0.70202157]
[1767368514104,9.40457058,129.05,129.01,0.70202157]
[1767368515024,9.40457058,129.04,129.01,0.70202157]
[1767368515825,0.225,129.07,129.01,0.70202157]
[1767368516027,9.40457058,129.04,129.01,0.70202157]
[1767368516323,9.40457058,129.05,129.01,0.70202157]
[1767368517117,7.74863764,129.06,129.01,0.70202157]
[1767368517328,17.15356743,129.05,129.01,0.70202157]
[1767368517530,9.40457058,129.05,129.01,0.70202157]
[1767368517726,7.74856885,129.06,129.01,0.70202157]
[1767368518118,9.40457058,129.05,129.01,0.70202157]
[1767368520421,9.40457058,129.04,129.01,0.70202157]
[1767368520722,0.225,129.01,128.93,0.65837054]
[1767368520910,9.40457058,129.0,128.94,0.65837054]
[1767368521117,9.40457058,129.01,128.96,0.65837054]
[1767368521430,9.40457058,129.02,128.96,0.65837054]
[1767368522015,0.225,129.03,128.97,0.65837054]
[1767368522016,9.40457058,129.03,128.97,0.65837054]
[1767368522221,9.40457058,129.02,128.97,0.65837054]
[1767368522531,9.40457058,129.0,128.97,0.65837054]
[1767368523235,9.40457058,129.03,128.97,7.75356287]
[1767368523434,9.40457058,129.04,128.98,0.65837054]
[1767368523613,9.40457058,129.03,128.98,0.65837054]
[1767368525336,9.40457058,129.01,128.96,0.65837054]
[1767368525540,0.225,129.02,128.96,0.65837054]
[1767368525710,9.40457058,129.01,128.96,0.65837054]
[1767368525916,0.225,129.07,128.98,9.40457058]
[1767368526219,7.97354864,129.06,128.99,0.65837054]
[1767368526427,9.40457058,129.04,128.99,0.65837054]